[Event "Early-Titled-Tuesday-Blitz-February-13-2024"]
[Site "Chess.com"]
[Date "2024.02.13"]
[Round "5"]
[White "Chandradi"]
[Black "LaPiToB"]
[Result "1-0"]
[WhiteElo "2517"]
[BlackElo "2313"]
[TimeControl "180+1"]
[EndTime "8:58:14 PST"]
[Termination "Chandradi won by resignation"]

1. c4 {[%clk 0:02:56.3]} 1... Nf6 {[%clk 0:02:58.7]} 2. g3 {[%clk 0:02:56.4]}
2... e6 {[%clk 0:02:58]} 3. Bg2 {[%clk 0:02:56.5]} 3... d5 {[%clk 0:02:57.7]} 4.
Nf3 {[%clk 0:02:56.8]} 4... c5 {[%clk 0:02:55.9]} 5. cxd5 {[%clk 0:02:55.4]}
5... exd5 {[%clk 0:02:54.9]} 6. d4 {[%clk 0:02:55]} 6... Nc6 {[%clk 0:02:54.1]}
7. O-O {[%clk 0:02:54.8]} 7... Be7 {[%clk 0:02:53.3]} 8. Nc3 {[%clk 0:02:54.2]}
8... O-O {[%clk 0:02:52.4]} 9. dxc5 {[%clk 0:02:53.5]} 9... Bxc5 {[%clk
0:02:52]} 10. Bg5 {[%clk 0:02:53.2]} 10... d4 {[%clk 0:02:46.5]} 11. Bxf6 {[%clk
0:02:40.8]} 11... Qxf6 {[%clk 0:02:46]} 12. Ne4 {[%clk 0:02:41.2]} 12... Qe7
{[%clk 0:02:46.5]} 13. Nxc5 {[%clk 0:02:41.8]} 13... Qxc5 {[%clk 0:02:47.2]} 14.
Rc1 {[%clk 0:02:42.4]} 14... Qb6 {[%clk 0:02:46.7]} 15. Qd2 {[%clk 0:02:13.3]}
15... Be6 {[%clk 0:02:41.1]} 16. b3 {[%clk 0:02:12.6]} 16... Rfd8 {[%clk
0:02:38.5]} 17. Rfd1 {[%clk 0:02:10.5]} 17... h6 {[%clk 0:02:33.1]} 18. Qf4
{[%clk 0:02:00.3]} 18... Qa6 {[%clk 0:01:49]} 19. Rd2 {[%clk 0:01:58.4]} 19...
d3 {[%clk 0:01:45.1]} 20. e3 {[%clk 0:01:16.7]} 20... Qa3 {[%clk 0:01:42.2]} 21.
Rcd1 {[%clk 0:01:11.6]} 21... Nb4 {[%clk 0:01:41.8]} 22. Nd4 {[%clk 0:01:09]}
22... Bd5 {[%clk 0:01:30]} 23. Nf5 {[%clk 0:00:52]} 23... Bxg2 {[%clk
0:01:09.4]} 24. Qe5 {[%clk 0:00:47.9]} 1-0

[Event "Early-Titled-Tuesday-Blitz-February-13-2024"]
[Site "Chess.com"]
[Date "2024.02.13"]
[Round "5"]
[White "toninhojit"]
[Black "kibromNNN"]
[Result "0-1"]
[WhiteElo "2516"]
[BlackElo "1804"]
[TimeControl "180+1"]
[EndTime "8:58:19 PST"]
[Termination "kibromNNN won by resignation"]

1. d4 {[%clk 0:03:00.9]} 1... e6 {[%clk 0:02:59]} 2. c4 {[%clk 0:03:01]} 2... d5
{[%clk 0:02:58.2]} 3. Nf3 {[%clk 0:03:01.4]} 3... Nf6 {[%clk 0:02:58.2]} 4. Nc3
{[%clk 0:03:01.4]} 4... dxc4 {[%clk 0:02:57]} 5. e4 {[%clk 0:03:01.3]} 5... Bb4
{[%clk 0:02:56.1]} 6. Bxc4 {[%clk 0:03:01]} 6... Nxe4 {[%clk 0:02:55.3]} 7. O-O
{[%clk 0:02:54.9]} 7... Nxc3 {[%clk 0:02:53.8]} 8. bxc3 {[%clk 0:02:54]} 8...
Be7 {[%clk 0:02:54.1]} 9. Ne5 {[%clk 0:02:47.7]} 9... Nc6 {[%clk 0:02:51.4]} 10.
Nxc6 {[%clk 0:02:47.2]} 10... bxc6 {[%clk 0:02:50.6]} 11. Qg4 {[%clk 0:02:48.1]}
11... O-O {[%clk 0:02:48]} 12. Re1 {[%clk 0:02:48.6]} 12... Bf6 {[%clk
0:02:35.6]} 13. Qg3 {[%clk 0:02:46.9]} 13... c5 {[%clk 0:02:32.5]} 14. Be3
{[%clk 0:02:46.3]} 14... Bb7 {[%clk 0:02:20.1]} 15. Rad1 {[%clk 0:02:46.1]}
15... Qe7 {[%clk 0:02:12.4]} 16. d5 {[%clk 0:01:11.2]} 16... exd5 {[%clk
0:02:10.5]} 17. Bg5 {[%clk 0:01:00]} 17... Qd8 {[%clk 0:01:57.9]} 18. Bxd5
{[%clk 0:00:57.4]} 18... Bxd5 {[%clk 0:01:52.2]} 19. Rxd5 {[%clk 0:00:58.3]}
19... Qxd5 {[%clk 0:01:44.2]} 20. Bxf6 {[%clk 0:00:58.7]} 20... g6 {[%clk
0:01:40.1]} 21. h3 {[%clk 0:00:55.1]} 21... Qf5 {[%clk 0:01:34.3]} 22. Qh4
{[%clk 0:00:54.6]} 22... Rfe8 {[%clk 0:01:32.3]} 23. Rd1 {[%clk 0:00:52.8]}
23... Re4 {[%clk 0:01:27.4]} 24. g4 {[%clk 0:00:53.1]} 24... Qf3 {[%clk
0:01:19.8]} 25. Rf1 {[%clk 0:00:45]} 25... Rae8 {[%clk 0:01:14.6]} 26. Qg5
{[%clk 0:00:45]} 26... Re1 {[%clk 0:01:11]} 0-1

[Event "Early-Titled-Tuesday-Blitz-February-13-2024"]
[Site "Chess.com"]
[Date "2024.02.13"]
[Round "5"]
[White "Som2310"]
[Black "Storne89"]
[Result "1-0"]
[WhiteElo "2811"]
[BlackElo "2581"]
[TimeControl "180+1"]
[EndTime "8:58:20 PST"]
[Termination "Som2310 won by resignation"]

1. e4 {[%clk 0:03:00.9]} 1... c5 {[%clk 0:02:54.7]} 2. Nf3 {[%clk 0:03:00.8]}
2... d6 {[%clk 0:02:55.1]} 3. d4 {[%clk 0:03:00.9]} 3... cxd4 {[%clk 0:02:56]}
4. Nxd4 {[%clk 0:03:01.1]} 4... Nf6 {[%clk 0:02:56.3]} 5. Nc3 {[%clk 0:03:01.3]}
5... Bd7 {[%clk 0:02:56.6]} 6. Bc4 {[%clk 0:03:00.3]} 6... Nc6 {[%clk
0:02:55.8]} 7. O-O {[%clk 0:03:00.3]} 7... a6 {[%clk 0:02:53.9]} 8. Bg5 {[%clk
0:02:59.6]} 8... e6 {[%clk 0:02:53.4]} 9. Nb3 {[%clk 0:02:46.2]} 9... b5 {[%clk
0:02:38.7]} 10. Be2 {[%clk 0:02:44.1]} 10... b4 {[%clk 0:02:36.1]} 11. Nb1
{[%clk 0:02:32.2]} 11... Be7 {[%clk 0:02:32.9]} 12. N1d2 {[%clk 0:02:31.2]}
12... a5 {[%clk 0:02:16.6]} 13. Bxf6 {[%clk 0:02:02.8]} 13... gxf6 {[%clk
0:02:11.5]} 14. Nc4 {[%clk 0:01:58]} 14... Qc7 {[%clk 0:02:06.9]} 15. a4 {[%clk
0:01:49.7]} 15... Ne5 {[%clk 0:02:00]} 16. Ne3 {[%clk 0:01:46.2]} 16... Bc6
{[%clk 0:01:50.5]} 17. f4 {[%clk 0:01:43.2]} 17... Ng6 {[%clk 0:01:50.3]} 18.
Qd3 {[%clk 0:01:40.1]} 18... Qb7 {[%clk 0:01:46.9]} 19. Nd2 {[%clk 0:01:36.4]}
19... Rg8 {[%clk 0:01:21.5]} 20. Rf2 {[%clk 0:01:25]} 20... f5 {[%clk
0:00:57.3]} 21. exf5 {[%clk 0:01:17.7]} 21... Nxf4 {[%clk 0:00:57.1]} 22. Rxf4
{[%clk 0:01:15.3]} 22... Bxg2 {[%clk 0:00:57.3]} 23. Rg4 {[%clk 0:01:12.1]}
23... Rxg4 {[%clk 0:00:42.9]} 24. Bxg4 {[%clk 0:01:11.5]} 24... Bc6 {[%clk
0:00:33.6]} 25. fxe6 {[%clk 0:01:10.1]} 25... Bg5 {[%clk 0:00:31.3]} 26. Ndc4
{[%clk 0:01:07.3]} 26... O-O-O {[%clk 0:00:28.7]} 27. e7+ {[%clk 0:01:05.3]} 1-0

[Event "Early-Titled-Tuesday-Blitz-February-13-2024"]
[Site "Chess.com"]
[Date "2024.02.13"]
[Round "5"]
[White "MrChessSponge"]
[Black "chessdjw"]
[Result "0-1"]
[WhiteElo "2520"]
[BlackElo "2754"]
[TimeControl "180+1"]
[EndTime "8:58:29 PST"]
[Termination "chessdjw won by resignation"]

1. Nf3 {[%clk 0:03:00.9]} 1... g6 {[%clk 0:02:56.8]} 2. c4 {[%clk 0:02:57.3]}
2... Bg7 {[%clk 0:02:57.1]} 3. Nc3 {[%clk 0:02:57.4]} 3... b6 {[%clk 0:02:52.9]}
4. g3 {[%clk 0:02:56.8]} 4... Bb7 {[%clk 0:02:53.3]} 5. Bg2 {[%clk 0:02:54.7]}
5... Nf6 {[%clk 0:02:53.4]} 6. O-O {[%clk 0:02:52.1]} 6... O-O {[%clk 0:02:54]}
7. d3 {[%clk 0:02:50.7]} 7... d5 {[%clk 0:02:48.8]} 8. cxd5 {[%clk 0:02:50.1]}
8... Nxd5 {[%clk 0:02:49.1]} 9. Bd2 {[%clk 0:02:50.2]} 9... c5 {[%clk
0:02:48.7]} 10. a3 {[%clk 0:02:48]} 10... Nc6 {[%clk 0:02:47.6]} 11. Rc1 {[%clk
0:02:42.3]} 11... Nc7 {[%clk 0:02:16]} 12. Na4 {[%clk 0:02:15.2]} 12... Qd7
{[%clk 0:01:54.8]} 13. b4 {[%clk 0:02:12]} 13... cxb4 {[%clk 0:01:53.4]} 14.
axb4 {[%clk 0:02:12.9]} 14... Nb5 {[%clk 0:01:53.2]} 15. Nc3 {[%clk 0:01:58]}
15... Nxc3 {[%clk 0:01:48.5]} 16. Bxc3 {[%clk 0:01:50.1]} 16... Bxc3 {[%clk
0:01:48.9]} 17. Rxc3 {[%clk 0:01:43]} 17... Nxb4 {[%clk 0:01:34.8]} 18. Ne5
{[%clk 0:01:35.1]} 18... Qd4 {[%clk 0:01:34.6]} 19. Rc4 {[%clk 0:01:33.7]} 19...
Qxe5 {[%clk 0:01:34.5]} 20. Bxb7 {[%clk 0:01:31.8]} 20... Rab8 {[%clk
0:01:34.9]} 21. Bf3 {[%clk 0:01:27.4]} 21... a5 {[%clk 0:01:34.2]} 22. Qb3
{[%clk 0:01:20.3]} 22... b5 {[%clk 0:01:31.2]} 23. Re4 {[%clk 0:01:18.2]} 23...
Qd6 {[%clk 0:01:30.8]} 24. h4 {[%clk 0:01:10.4]} 24... Nc6 {[%clk 0:01:28]} 25.
e3 {[%clk 0:01:03.9]} 25... a4 {[%clk 0:01:24.7]} 26. Qc2 {[%clk 0:01:00.4]}
26... Nb4 {[%clk 0:01:18.5]} 27. Qb1 {[%clk 0:01:00.2]} 27... Nd5 {[%clk
0:01:14.8]} 28. Rd4 {[%clk 0:00:58.4]} 28... e6 {[%clk 0:01:14.2]} 29. Bxd5
{[%clk 0:00:54.2]} 29... exd5 {[%clk 0:01:14]} 30. e4 {[%clk 0:00:48.3]} 30...
b4 {[%clk 0:01:14.1]} 31. Rxd5 {[%clk 0:00:47.5]} 31... Qa6 {[%clk 0:01:13.6]}
32. h5 {[%clk 0:00:41]} 32... b3 {[%clk 0:01:11.9]} 33. h6 {[%clk 0:00:38.5]}
33... a3 {[%clk 0:01:09.1]} 34. Rc1 {[%clk 0:00:31.8]} 34... b2 {[%clk
0:01:07.4]} 0-1

[Event "Early-Titled-Tuesday-Blitz-February-13-2024"]
[Site "Chess.com"]
[Date "2024.02.13"]
[Round "5"]
[White "KanalSzachowy"]
[Black "Rurep26"]
[Result "0-1"]
[WhiteElo "2414"]
[BlackElo "2747"]
[TimeControl "180+1"]
[EndTime "8:58:31 PST"]
[Termination "Rurep26 won by resignation"]

1. e4 {[%clk 0:02:59.7]} 1... e6 {[%clk 0:02:58.9]} 2. d4 {[%clk 0:02:59.4]}
2... d5 {[%clk 0:02:59.2]} 3. Nc3 {[%clk 0:03:00]} 3... Bb4 {[%clk 0:02:59.4]}
4. e5 {[%clk 0:03:00.2]} 4... c5 {[%clk 0:03:00]} 5. a3 {[%clk 0:03:00.8]} 5...
Bxc3+ {[%clk 0:03:00.4]} 6. bxc3 {[%clk 0:03:01.7]} 6... Qc7 {[%clk 0:03:00.8]}
7. Qg4 {[%clk 0:03:02.3]} 7... f5 {[%clk 0:03:00.7]} 8. Qg3 {[%clk 0:03:02.1]}
8... Nc6 {[%clk 0:03:00.5]} 9. Ne2 {[%clk 0:02:54.6]} 9... cxd4 {[%clk
0:02:59.9]} 10. cxd4 {[%clk 0:02:54.1]} 10... Nge7 {[%clk 0:03:00.4]} 11. c3
{[%clk 0:02:54.2]} 11... O-O {[%clk 0:02:59.7]} 12. h4 {[%clk 0:02:51.4]} 12...
Bd7 {[%clk 0:02:57.9]} 13. h5 {[%clk 0:02:50.9]} 13... Rac8 {[%clk 0:02:54.6]}
14. Bg5 {[%clk 0:02:42.3]} 14... Rf7 {[%clk 0:02:53.6]} 15. h6 {[%clk
0:02:22.4]} 15... g6 {[%clk 0:02:52.5]} 16. Bf6 {[%clk 0:02:19.9]} 16... Qa5
{[%clk 0:02:48.3]} 17. Qh4 {[%clk 0:01:43.6]} 17... Kf8 {[%clk 0:02:37.5]} 18.
g4 {[%clk 0:01:40.2]} 18... Nxd4 {[%clk 0:02:25.5]} 19. Bxe7+ {[%clk 0:01:16.3]}
19... Ke8 {[%clk 0:02:25.3]} 20. Bb4 {[%clk 0:01:07.5]} 20... Nf3+ {[%clk
0:02:24]} 21. Kd1 {[%clk 0:01:07.9]} 21... Qa4+ {[%clk 0:02:24.5]} 22. Kc1
{[%clk 0:01:05.6]} 22... Nxh4 {[%clk 0:02:24.5]} 23. Rxh4 {[%clk 0:01:06.5]}
23... fxg4 {[%clk 0:02:22.9]} 24. Rxg4 {[%clk 0:01:06.9]} 24... Rxf2 {[%clk
0:02:21.2]} 25. Kd2 {[%clk 0:01:00.5]} 25... Qb3 {[%clk 0:02:14.7]} 26. Rc1
{[%clk 0:00:49.4]} 26... Rc4 {[%clk 0:02:06]} 27. Rg2 {[%clk 0:00:26.3]} 27...
Rxg2 {[%clk 0:01:48.1]} 28. Bxg2 {[%clk 0:00:26.1]} 28... Rxb4 {[%clk
0:01:32.4]} 29. axb4 {[%clk 0:00:23.2]} 29... Ba4 {[%clk 0:01:30.4]} 30. Nd4
{[%clk 0:00:20.6]} 30... Qa2+ {[%clk 0:01:30.3]} 31. Nc2 {[%clk 0:00:17.1]}
31... Bxc2 {[%clk 0:01:27.1]} 32. Rxc2 {[%clk 0:00:17.1]} 32... Qc4 {[%clk
0:01:28]} 33. Bf1 {[%clk 0:00:17.1]} 33... Qxf1 {[%clk 0:01:27.5]} 0-1

[Event "Early-Titled-Tuesday-Blitz-February-13-2024"]
[Site "Chess.com"]
[Date "2024.02.13"]
[Round "5"]
[White "Lady_Nika"]
[Black "Kobalia"]
[Result "0-1"]
[WhiteElo "2606"]
[BlackElo "2801"]
[TimeControl "180+1"]
[EndTime "8:58:31 PST"]
[Termination "Kobalia won on time"]

1. e4 {[%clk 0:03:00.9]} 1... c5 {[%clk 0:02:59.5]} 2. Nc3 {[%clk 0:03:01]} 2...
Nc6 {[%clk 0:02:58.9]} 3. g3 {[%clk 0:03:01.5]} 3... g6 {[%clk 0:02:58.5]} 4.
Bg2 {[%clk 0:03:01.9]} 4... Bg7 {[%clk 0:02:59.2]} 5. d3 {[%clk 0:03:02.2]} 5...
d6 {[%clk 0:02:59]} 6. f4 {[%clk 0:03:02.6]} 6... Nf6 {[%clk 0:02:58.7]} 7. Nf3
{[%clk 0:03:03.1]} 7... O-O {[%clk 0:02:59.1]} 8. O-O {[%clk 0:03:03.5]} 8...
Rb8 {[%clk 0:02:58.8]} 9. Rb1 {[%clk 0:03:03.9]} 9... b5 {[%clk 0:02:57.8]} 10.
Ne2 {[%clk 0:03:04.3]} 10... a5 {[%clk 0:02:55.2]} 11. h3 {[%clk 0:03:03.4]}
11... b4 {[%clk 0:02:55.4]} 12. Be3 {[%clk 0:03:03.4]} 12... Ba6 {[%clk
0:02:55]} 13. b3 {[%clk 0:03:01.7]} 13... Na7 {[%clk 0:02:51.1]} 14. g4 {[%clk
0:02:59.6]} 14... Nb5 {[%clk 0:02:51.1]} 15. Qe1 {[%clk 0:02:27.7]} 15... Rc8
{[%clk 0:02:40.3]} 16. Qh4 {[%clk 0:02:25.6]} 16... e6 {[%clk 0:02:25.2]} 17. f5
{[%clk 0:02:18.6]} 17... Na3 {[%clk 0:02:14.7]} 18. Rbc1 {[%clk 0:01:39.4]}
18... Nxe4 {[%clk 0:02:11.6]} 19. g5 {[%clk 0:01:38.9]} 19... exf5 {[%clk
0:02:09.2]} 20. Nf4 {[%clk 0:01:09.6]} 20... Nc3 {[%clk 0:02:02.5]} 21. Rf2
{[%clk 0:00:57.4]} 21... Re8 {[%clk 0:02:01.5]} 22. Re1 {[%clk 0:00:36.7]} 22...
Bb7 {[%clk 0:01:59.2]} 23. Bc1 {[%clk 0:00:09.3]} 23... Bxf3 {[%clk 0:01:46.8]}
24. Rxe8+ {[%clk 0:00:08.3]} 24... Qxe8 {[%clk 0:01:47.7]} 25. Rxf3 {[%clk
0:00:03.5]} 25... Nxc2 {[%clk 0:01:47.1]} 26. Kh2 {[%clk 0:00:03.2]} 26... Qe1
{[%clk 0:01:40.5]} 27. Qxe1 {[%clk 0:00:03.3]} 27... Nxe1 {[%clk 0:01:41.4]} 28.
Re3 {[%clk 0:00:03.9]} 28... Nxg2 {[%clk 0:01:40.4]} 29. Kxg2 {[%clk 0:00:04.4]}
29... Nxa2 {[%clk 0:01:40.4]} 30. Bd2 {[%clk 0:00:04.5]} 30... Bc3 {[%clk
0:01:39.8]} 31. Bxc3 {[%clk 0:00:01.7]} 31... bxc3 {[%clk 0:01:37.4]} 32. Re2
{[%clk 0:00:02.1]} 32... Nb4 {[%clk 0:01:36.9]} 0-1

[Event "Early-Titled-Tuesday-Blitz-February-13-2024"]
[Site "Chess.com"]
[Date "2024.02.13"]
[Round "5"]
[White "Shahdad2007"]
[Black "Harry_Rakkel"]
[Result "1-0"]
[WhiteElo "2499"]
[BlackElo "2686"]
[TimeControl "180+1"]
[EndTime "8:58:34 PST"]
[Termination "Shahdad2007 won by resignation"]

1. Nf3 {[%clk 0:03:00.9]} 1... d5 {[%clk 0:02:56.6]} 2. g3 {[%clk 0:03:01.3]}
2... c6 {[%clk 0:02:54.9]} 3. Bg2 {[%clk 0:03:01.7]} 3... Bg4 {[%clk 0:02:55.1]}
4. O-O {[%clk 0:03:01.2]} 4... Nd7 {[%clk 0:02:54.7]} 5. c4 {[%clk 0:03:00.8]}
5... e6 {[%clk 0:02:53.4]} 6. d4 {[%clk 0:02:57.2]} 6... Ngf6 {[%clk 0:02:45.4]}
7. Nc3 {[%clk 0:02:56.9]} 7... dxc4 {[%clk 0:02:39.2]} 8. a4 {[%clk 0:02:43.2]}
8... a5 {[%clk 0:02:32.4]} 9. e4 {[%clk 0:02:21.8]} 9... Be7 {[%clk 0:02:24.3]}
10. h3 {[%clk 0:02:16.3]} 10... Bxf3 {[%clk 0:02:23.1]} 11. Qxf3 {[%clk
0:02:15.9]} 11... O-O {[%clk 0:02:22.3]} 12. Rd1 {[%clk 0:02:13.9]} 12... Qb6
{[%clk 0:01:56.5]} 13. Qe2 {[%clk 0:01:57.2]} 13... Qa6 {[%clk 0:01:54.6]} 14.
Bg5 {[%clk 0:01:40.1]} 14... h6 {[%clk 0:01:48.4]} 15. Bxf6 {[%clk 0:01:40.1]}
15... Nxf6 {[%clk 0:01:49.3]} 16. d5 {[%clk 0:01:09.6]} 16... exd5 {[%clk
0:01:47.1]} 17. exd5 {[%clk 0:01:09.8]} 17... Rfe8 {[%clk 0:01:47.6]} 18. dxc6
{[%clk 0:01:08.7]} 18... bxc6 {[%clk 0:01:47.6]} 19. Qf3 {[%clk 0:01:06.9]}
19... Rec8 {[%clk 0:01:36.5]} 20. Rac1 {[%clk 0:01:04.9]} 20... Rab8 {[%clk
0:01:35.7]} 21. Rc2 {[%clk 0:01:00.4]} 21... Bc5 {[%clk 0:01:32.8]} 22. Ne4
{[%clk 0:00:57.9]} 22... Nxe4 {[%clk 0:01:30.5]} 23. Qxe4 {[%clk 0:00:58.8]}
23... Rb4 {[%clk 0:01:26.2]} 24. Bf1 {[%clk 0:00:59]} 24... Qb6 {[%clk 0:01:23]}
25. Bxc4 {[%clk 0:00:43.2]} 25... Rxb2 {[%clk 0:01:17.7]} 26. Bxf7+ {[%clk
0:00:42.9]} 26... Kh8 {[%clk 0:01:17.9]} 27. Rdd2 {[%clk 0:00:33.9]} 27... Rb3
{[%clk 0:01:10.2]} 28. Kg2 {[%clk 0:00:33.7]} 28... Rf8 {[%clk 0:01:10.9]} 29.
Bxb3 {[%clk 0:00:32.4]} 29... Bb4 {[%clk 0:01:07.8]} 30. Re2 {[%clk 0:00:31.6]}
30... c5 {[%clk 0:01:02.1]} 31. Bc4 {[%clk 0:00:30.4]} 31... Qc7 {[%clk
0:01:00]} 32. Bd3 {[%clk 0:00:29.7]} 1-0

[Event "Early-Titled-Tuesday-Blitz-February-13-2024"]
[Site "Chess.com"]
[Date "2024.02.13"]
[Round "5"]
[White "PushingpawnsNYC"]
[Black "FMStan15"]
[Result "1-0"]
[WhiteElo "2337"]
[BlackElo "2019"]
[TimeControl "180+1"]
[EndTime "8:58:36 PST"]
[Termination "PushingpawnsNYC won by resignation"]

1. e4 {[%clk 0:03:00.9]} 1... e6 {[%clk 0:02:52]} 2. d4 {[%clk 0:02:57.5]} 2...
d5 {[%clk 0:02:52.2]} 3. Bd3 {[%clk 0:02:58.1]} 3... dxe4 {[%clk 0:02:51.9]} 4.
Bxe4 {[%clk 0:02:59]} 4... c5 {[%clk 0:02:52]} 5. Ne2 {[%clk 0:02:53.7]} 5...
Nf6 {[%clk 0:02:51.3]} 6. Bf3 {[%clk 0:02:53.2]} 6... Nc6 {[%clk 0:02:51.6]} 7.
Be3 {[%clk 0:02:49.8]} 7... Qb6 {[%clk 0:02:51.5]} 8. Nbc3 {[%clk 0:02:43.2]}
8... cxd4 {[%clk 0:02:48.8]} 9. Nxd4 {[%clk 0:02:30.1]} 9... Bc5 {[%clk
0:02:37]} 10. Bxc6+ {[%clk 0:02:17.4]} 10... bxc6 {[%clk 0:02:35.1]} 11. O-O
{[%clk 0:02:17.4]} 11... Bxd4 {[%clk 0:02:28.7]} 12. Bxd4 {[%clk 0:02:16.9]}
12... Qd8 {[%clk 0:02:23.7]} 13. Qf3 {[%clk 0:01:49.3]} 13... Bb7 {[%clk
0:02:16.6]} 14. Bc5 {[%clk 0:01:44.3]} 14... Nd5 {[%clk 0:02:09.2]} 15. Ne4
{[%clk 0:01:43.3]} 15... f5 {[%clk 0:01:38.5]} 16. Nd6+ {[%clk 0:01:38.1]} 16...
Kd7 {[%clk 0:01:37.8]} 17. c4 {[%clk 0:01:23.8]} 17... Ba6 {[%clk 0:01:34.9]}
18. cxd5 {[%clk 0:01:21.9]} 18... Bxf1 {[%clk 0:01:34.8]} 19. dxc6+ {[%clk
0:01:13.4]} 19... Kc7 {[%clk 0:01:30]} 20. Nb5+ {[%clk 0:01:11.5]} 20... Kc8
{[%clk 0:01:28.4]} 21. Rd1 {[%clk 0:00:56.4]} 21... Qa5 {[%clk 0:01:00.3]} 22.
c7 {[%clk 0:00:47.8]} 22... Qxb5 {[%clk 0:00:46.5]} 23. Qxa8+ {[%clk 0:00:41.5]}
23... Kxc7 {[%clk 0:00:46.2]} 24. Bd6+ {[%clk 0:00:37]} 24... Kb6 {[%clk
0:00:45.4]} 25. Qxh8 {[%clk 0:00:33.9]} 25... Be2 {[%clk 0:00:40.2]} 26. Qb8+
{[%clk 0:00:31.4]} 1-0

[Event "Early-Titled-Tuesday-Blitz-February-13-2024"]
[Site "Chess.com"]
[Date "2024.02.13"]
[Round "5"]
[White "GasconJR"]
[Black "Akewjon"]
[Result "0-1"]
[WhiteElo "2563"]
[BlackElo "2801"]
[TimeControl "180+1"]
[EndTime "8:58:37 PST"]
[Termination "Akewjon won on time"]

1. e4 {[%clk 0:02:58.3]} 1... c5 {[%clk 0:02:56.2]} 2. Nf3 {[%clk 0:02:57.5]}
2... d6 {[%clk 0:02:56.4]} 3. d4 {[%clk 0:02:57.8]} 3... cxd4 {[%clk 0:02:56.9]}
4. Nxd4 {[%clk 0:02:58.7]} 4... Nf6 {[%clk 0:02:57.6]} 5. Nc3 {[%clk 0:02:59.2]}
5... a6 {[%clk 0:02:58.1]} 6. Bd3 {[%clk 0:02:59.7]} 6... g6 {[%clk 0:02:56.5]}
7. f3 {[%clk 0:02:59]} 7... Bg7 {[%clk 0:02:57]} 8. Be3 {[%clk 0:02:42.4]} 8...
Nc6 {[%clk 0:02:54.9]} 9. Qd2 {[%clk 0:02:31.9]} 9... h5 {[%clk 0:02:53.3]} 10.
O-O-O {[%clk 0:02:00.3]} 10... Bd7 {[%clk 0:02:50.7]} 11. Rhe1 {[%clk
0:01:58.7]} 11... Ne5 {[%clk 0:02:46.7]} 12. Kb1 {[%clk 0:01:50.4]} 12... Rc8
{[%clk 0:02:43.8]} 13. f4 {[%clk 0:01:48.7]} 13... Nxd3 {[%clk 0:02:37.6]} 14.
Qxd3 {[%clk 0:01:46.2]} 14... O-O {[%clk 0:02:35.6]} 15. h3 {[%clk 0:01:23.6]}
15... Qa5 {[%clk 0:02:33.6]} 16. Nb3 {[%clk 0:01:07.1]} 16... Qb4 {[%clk
0:02:13]} 17. e5 {[%clk 0:00:36.5]} 17... Bf5 {[%clk 0:01:41.7]} 18. exf6 {[%clk
0:00:35.8]} 18... Bxd3 {[%clk 0:01:36.9]} 19. fxg7 {[%clk 0:00:36.2]} 19...
Bxc2+ {[%clk 0:01:35.4]} 20. Kxc2 {[%clk 0:00:36.3]} 20... Rfe8 {[%clk
0:01:29.3]} 21. Kb1 {[%clk 0:00:24.9]} 21... Qc4 {[%clk 0:01:12.8]} 22. Bd4
{[%clk 0:00:19.8]} 22... b5 {[%clk 0:01:11.2]} 23. Na5 {[%clk 0:00:03.9]} 23...
Qc7 {[%clk 0:01:10.9]} 24. b4 {[%clk 0:00:04]} 24... e5 {[%clk 0:01:08.7]} 25.
fxe5 {[%clk 0:00:03.2]} 25... dxe5 {[%clk 0:01:09.6]} 0-1

[Event "Early-Titled-Tuesday-Blitz-February-13-2024"]
[Site "Chess.com"]
[Date "2024.02.13"]
[Round "5"]
[White "chipmunknau"]
[Black "Cheer_Down"]
[Result "1-0"]
[WhiteElo "2721"]
[BlackElo "2512"]
[TimeControl "180+1"]
[EndTime "8:58:39 PST"]
[Termination "chipmunknau won by resignation"]

1. Nf3 {[%clk 0:03:00.9]} 1... Nf6 {[%clk 0:02:58.5]} 2. c4 {[%clk 0:02:58.8]}
2... e6 {[%clk 0:02:55.8]} 3. g3 {[%clk 0:02:50.8]} 3... b6 {[%clk 0:02:55.1]}
4. Bg2 {[%clk 0:02:49.1]} 4... Bb7 {[%clk 0:02:54.9]} 5. O-O {[%clk 0:02:49]}
5... Be7 {[%clk 0:02:50.1]} 6. Nc3 {[%clk 0:02:49]} 6... O-O {[%clk 0:02:47.3]}
7. Re1 {[%clk 0:02:46.9]} 7... d5 {[%clk 0:02:46]} 8. cxd5 {[%clk 0:02:47.8]}
8... exd5 {[%clk 0:02:45.8]} 9. d4 {[%clk 0:02:47.7]} 9... Na6 {[%clk
0:02:38.4]} 10. Bf4 {[%clk 0:02:44.3]} 10... c5 {[%clk 0:02:27.4]} 11. Rc1
{[%clk 0:02:43.8]} 11... h6 {[%clk 0:02:24]} 12. h3 {[%clk 0:02:19.6]} 12... Qd7
{[%clk 0:02:15.8]} 13. Ne5 {[%clk 0:02:18.6]} 13... Qe6 {[%clk 0:02:15.6]} 14.
g4 {[%clk 0:02:10.9]} 14... Rfe8 {[%clk 0:02:05.8]} 15. e3 {[%clk 0:02:08.4]}
15... Ne4 {[%clk 0:01:50.4]} 16. Nb5 {[%clk 0:01:49.7]} 16... Bh4 {[%clk
0:00:58.4]} 17. Rf1 {[%clk 0:01:32.2]} 17... g5 {[%clk 0:00:46.1]} 18. Bh2
{[%clk 0:01:30.2]} 18... Red8 {[%clk 0:00:36.5]} 19. Nf3 {[%clk 0:01:24.6]}
19... f5 {[%clk 0:00:28.9]} 20. gxf5 {[%clk 0:01:16.4]} 20... Qxf5 {[%clk
0:00:29.1]} 21. Nxh4 {[%clk 0:01:16.9]} 21... gxh4 {[%clk 0:00:29.7]} 22. Kh1
{[%clk 0:01:05.7]} 22... Nxf2+ {[%clk 0:00:26.3]} 23. Rxf2 {[%clk 0:01:05.7]}
23... Qxf2 {[%clk 0:00:26.3]} 24. Qg4+ {[%clk 0:01:06.1]} 24... Kh7 {[%clk
0:00:22.1]} 25. Rf1 {[%clk 0:01:00.7]} 25... Qxf1+ {[%clk 0:00:14.3]} 26. Bxf1
{[%clk 0:01:01.6]} 26... Rf8 {[%clk 0:00:13.8]} 27. Bd3+ {[%clk 0:01:00.8]} 1-0